bitfinex-derivatives/quotes_BNBF0:USTF0_20251002
["timestamp","ask_amount","ask_price","bid_price","bid_amount"]
[1759431426690,0.83813313,1069.4,1067.4,0.82638688]
[1759431429689,0.83813313,1069.3,1067.4,0.82638688]
[1759431430587,0.83813313,1069.2,1067.5,0.82638688]
[1759431433592,0.83813313,1069.1,1067.5,0.82638688]
[1759431434395,0.83813313,1069.2,1067.4,0.82638688]
[1759431434794,0.83813313,1069.4,1067.3,2.60778811]
[1759431435893,0.83813313,1069.4,1067.4,0.82638688]
[1759431436103,0.83813313,1069.4,1067.3,2.60778811]
[1759431436895,0.83813313,1069.4,1067.4,0.82638688]
[1759431441096,0.83813313,1069.1,1067.6,0.82638688]
[1759431441296,0.83813313,1069.1,1067.7,0.82638688]
[1759431441598,0.83813313,1069.3,1067.5,0.82638688]
[1759431441796,0.83813313,1069.4,1067.6,0.82638688]
[1759431442294,0.83813313,1069.5,1067.7,0.82638688]
[1759431442492,0.83813313,1069.6,1067.6,0.82638688]
[1759431443797,0.83813313,1069.6,1067.5,0.82638688]
[1759431445605,0.83813313,1069.5,1067.6,0.82638688]
[1759431447497,0.83813313,1069.5,1067.5,0.82638688]
[1759431447698,0.83813313,1069.6,1067.5,0.82638688]
[1759431447894,0.83813313,1069.4,1067.3,2.60778811]
[1759431449699,0.83813313,1069.3,1067.3,2.60778811]
[1759431450299,0.83813313,1069.3,1067.4,0.82638688]
[1759431450802,0.83813313,1069.4,1067.3,2.60778811]
[1759431451001,0.83813313,1069.2,1067.3,1.78140123]
[1759431451596,0.83813313,1069.1,1067.3,1.78140123]
[1759431452702,0.83813313,1069.1,1067.3,2.60778811]
[1759431453002,0.83813313,1069.2,1067.4,0.82638688]
[1759431453205,0.16281121,1069.9,1067.4,0.82638688]
[1759431453206,0.83813313,1069.1,1067.4,0.82638688]
[1759431453905,0.83813313,1069.2,1067.4,0.82638688]
[1759431454106,0.83813313,1069.2,1067.5,0.82638688]
[1759431454510,0.83813313,1069.2,1067.6,0.82638688]
[1759431454810,0.83813313,1069.2,1067.5,0.82638688]
[1759431455010,0.83813313,1069.2,1067.6,0.82638688]
[1759431455413,0.83813313,1069.3,1067.7,0.82638688]
[1759431456414,0.83813313,1069.2,1067.7,0.82638688]
[1759431457311,0.83813313,1069.1,1067.6,0.82638688]
[1759431459916,0.83813313,1069.1,1067.7,0.82638688]
[1759431460418,0.83813313,1069.2,1067.7,0.82638688]
[1759431462215,0.83813313,1069.3,1067.6,0.82638688]
[1759431464920,0.83813313,1069.4,1067.5,0.82638688]
[1759431465121,0.83813313,1069.4,1067.4,0.82638688]
[1759431465321,0.83813313,1069.3,1067.4,0.82638688]
[1759431465520,0.83813313,1069.2,1067.4,0.82638688]
[1759431468319,0.83813313,1069.1,1067.6,0.82638688]
[1759431468525,0.83813313,1069.1,1067.5,0.82638688]
[1759431472526,0.83813313,1069.2,1067.5,0.82638688]
[1759431473025,0.83813313,1069.2,1067.4,2.49780958]
[1759431473222,0.83813313,1069.2,1067.5,0.82638688]
[1759431474824,0.83813313,1069.1,1067.4,2.49780958]
[1759431476424,0.83813313,1068.9,1067.6,0.82638688]
[1759431476629,0.83813313,1068.8,1067.5,0.82638688]
[1759431476830,0.83813313,1069.0,1067.4,2.49780958]
[1759431478530,0.83813313,1069.1,1067.4,1.6714227]
[1759431481831,0.83813313,1069.2,1067.4,1.6714227]
[1759431482625,0.83813313,1069.1,1067.4,1.6714227]
[1759431485835,0.83813313,1069.0,1067.4,1.6714227]
[1759431487029,1.2571997,1069.3,1067.4,1.6714227]
[1759431487030,0.83813313,1068.9,1067.4,1.6714227]
[1759431488330,0.83813313,1068.9,1067.3,1.61094256]
[1759431488545,0.83813313,1068.9,1067.3,1.61494256]
[1759431488734,0.83813313,1069.0,1067.3,1.61494256]
[1759431491732,0.83813313,1068.9,1067.3,1.61494256]
[1759431491937,0.83813313,1068.9,1067.4,1.61231473]
[1759431492135,0.83813313,1068.9,1067.4,1.61631473]
[1759431494039,0.83813313,1068.8,1067.4,1.61631473]
[1759431495535,0.83813313,1068.8,1067.4,2.44270161]
[1759431495941,0.83813313,1068.8,1067.4,1.61631473]
[1759431496941,0.83813313,1069.3,1067.4,1.61631473]
[1759431497740,0.83813313,1069.1,1067.4,1.61631473]
[1759431497944,0.83813313,1069.0,1067.4,1.61631473]
[1759431498450,0.83813313,1068.8,1067.4,1.61631473]
[1759431498943,0.83813313,1068.6,1067.4,1.61631473]
[1759431500343,0.83813313,1068.7,1067.4,1.61631473]
[1759431500549,0.83813313,1068.6,1067.4,1.61631473]
[1759431500940,0.16281121,1069.9,1067.4,1.61631473]
[1759431501240,1.2571997,1069.8,1067.4,1.61631473]
[1759431501740,1.2571997,1069.7,1067.4,1.61631473]
[1759431502543,1.2571997,1069.7,1067.7,1.58599993]
[1759431502740,1.2571997,1069.7,1067.7,1.58999993]
[1759431503544,1.2571997,1069.6,1067.7,2.21193969]
[1759431504346,1.2571997,1069.4,1067.7,2.21193969]
[1759431504542,1.2571997,1069.3,1067.8,0.62193976]
[1759431505145,1.2571997,1069.3,1067.7,2.21193969]
[1759431505342,1.2571997,1069.3,1067.8,0.62193976]
[1759431505742,1.2571997,1069.5,1067.7,2.21193969]
[1759431506041,1.2571997,1069.5,1067.7,1.58999993]
[1759431510847,1.2571997,1069.4,1067.7,1.58999993]
[1759431511051,1.2571997,1069.2,1067.7,1.58999993]
[1759431511249,1.2571997,1069.2,1067.7,2.21193969]
[1759431511751,1.2571997,1069.2,1067.7,1.58999993]
[1759431513152,1.2571997,1069.3,1067.7,1.58999993]
[1759431514254,1.2571997,1069.3,1067.7,2.21193969]
[1759431514755,1.2571997,1069.2,1067.7,2.21193969]
[1759431515653,1.2571997,1069.4,1067.7,1.58999993]
[1759431516357,1.2571997,1069.3,1067.7,1.58999993]
[1759431516556,1.2571997,1069.4,1067.7,1.58999993]
[1759431518359,1.2571997,1069.3,1067.7,1.58999993]
[1759431518559,0.16281121,1069.9,1067.7,1.58999993]
[1759431518560,1.2571997,1069.2,1067.7,1.58999993]
[1759431519162,1.2571997,1069.3,1067.7,1.58999993]
[1759431519362,1.2571997,1069.0,1067.7,1.58999993]
[1759431522266,1.2571997,1068.9,1067.7,1.58999993]
[1759431523972,1.2571997,1069.1,1067.7,1.58999993]
[1759431526167,1.2571997,1069.2,1067.7,1.58999993]
[1759431528169,1.2571997,1069.0,1067.7,1.58999993]
[1759431528972,1.2571997,1069.1,1067.7,1.58999993]
[1759431529166,1.2571997,1069.0,1067.7,1.58999993]
[1759431531075,0.83891724,1068.7,1067.7,1.58999993]
[1759431532976,0.83891724,1068.8,1067.7,1.58999993]
[1759431534177,0.83891724,1068.7,1067.7,1.58999993]
[1759431536778,0.83891724,1068.8,1067.7,1.58999993]
[1759431536976,0.83891724,1068.9,1067.7,1.58999993]
[1759431539476,0.83891724,1068.8,1067.7,1.58999993]
[1759431539681,0.83891724,1068.9,1067.7,1.58999993]
[1759431540482,0.83891724,1068.7,1067.7,1.58999993]
[1759431541484,0.83891724,1068.8,1067.7,1.58999993]
[1759431545083,0.83891724,1069.0,1067.7,1.58999993]
[1759431545282,0.83891724,1069.1,1067.7,1.58999993]
[1759431546199,0.83891724,1069.1,1067.8,0.62193976]
[1759431546396,0.83891724,1069.2,1067.9,0.62193976]
[1759431549089,0.83891724,1069.3,1067.8,0.62193976]
[1759431552094,0.83891724,1069.4,1067.8,0.62193976]
[1759431552793,0.83891724,1069.4,1067.9,0.62193976]
[1759431553294,0.83891724,1069.4,1067.8,0.62193976]
[1759431555392,0.83891724,1069.5,1067.8,0.62193976]
[1759431556596,0.83891724,1069.4,1067.8,0.62193976]
[1759431564300,0.83891724,1069.5,1067.8,0.62193976]
[1759431565300,0.83891724,1069.5,1067.7,2.21193969]
[1759431571609,0.83891724,1069.4,1067.8,0.62193976]
[1759431571810,0.83891724,1069.7,1067.7,2.21193969]
[1759431574310,0.83891724,1069.7,1067.7,1.58999993]
[1759431576309,0.83891724,1069.5,1067.7,1.58999993]
[1759431580924,0.83891724,1069.4,1067.7,1.58999993]
[1759431581123,0.83891724,1069.3,1067.7,1.58999993]
[1759431581520,0.83891724,1069.4,1067.7,1.58999993]
[1759431585123,0.83891724,1069.2,1067.7,1.58999993]
[1759431585325,0.83891724,1069.2,1067.7,2.21193969]
[1759431588931,0.83891724,1069.1,1067.7,1.58999993]
[1759431590229,0.83891724,1069.1,1067.6,0.62193976]
[1759431590831,0.83891724,1069.1,1067.3,0.82638688]
[1759431590832,0.83891724,1069.1,1067.5,0.62193976]
[1759431593333,0.83891724,1069.1,1066.3,2.06596721]
[1759431593334,0.83891724,1069.0,1067.6,0.62193976]
[1759431593832,0.83891724,1069.2,1067.5,0.62193976]
[1759431598432,0.83891724,1069.2,1067.6,0.62193976]
[1759431599330,1.2571997,1069.4,1067.6,0.62193976]
[1759431599331,0.83891724,1069.1,1067.6,0.62193976]
[1759431599530,0.83891724,1069.2,1067.6,0.62193976]
[1759431600229,0.83891724,1069.0,1067.6,0.62193976]
[1759431600628,0.83891724,1069.1,1067.6,0.62193976]
[1759431600835,0.83891724,1069.1,1067.7,0.62193976]
[1759431601434,0.83891724,1069.2,1067.8,0.62193976]
[1759431602246,0.83891724,1069.3,1067.8,0.62193976]
[1759431602445,0.83891724,1069.2,1067.7,0.62193976]
[1759431604033,0.83891724,1069.1,1067.7,0.62193976]
[1759431604236,0.83891724,1069.1,1067.6,0.62193976]
[1759431604436,0.83891724,1069.1,1067.7,0.62193976]
[1759431605738,1.2571997,1069.4,1067.4,0.82638688]
[1759431605739,0.83891724,1069.2,1067.9,0.62193976]
[1759431605939,0.83891724,1069.0,1067.9,0.62193976]
[1759431606238,0.16281121,1069.9,1067.9,0.62193976]
[1759431606239,0.83891724,1069.1,1067.9,0.62193976]
[1759431606438,0.83891724,1069.0,1067.8,0.62193976]
[1759431606934,0.83891724,1068.9,1067.7,0.62193976]
[1759431607437,0.83891724,1069.0,1067.7,0.62193976]
[1759431608138,0.16281121,1069.9,1067.7,0.62193976]
[1759431608139,0.83891724,1068.9,1067.7,0.62193976]
[1759431608341,0.83891724,1069.0,1067.7,0.62193976]
[1759431608536,0.83891724,1069.0,1067.6,0.78473954]
[1759431609136,0.83891724,1069.3,1067.6,0.16279978]
[1759431609335,0.83891724,1069.2,1067.6,0.16279978]
[1759431612149,0.83891724,1068.9,1067.6,0.78473954]
[1759431612344,0.83891724,1069.0,1067.6,0.78473954]
[1759431612753,0.83891724,1069.0,1067.6,0.16279978]
[1759431614044,0.83891724,1069.1,1067.6,0.16279978]
[1759431618545,0.83891724,1069.0,1067.6,0.16279978]
[1759431619747,0.83891724,1068.9,1067.6,0.16279978]
[1759431619940,0.83891724,1068.8,1067.6,0.16279978]
[1759431622643,0.83891724,1069.0,1067.6,0.16279978]
[1759431625648,0.83891724,1068.9,1067.6,0.16279978]
[1759431628050,0.83891724,1068.8,1067.6,0.16279978]
[1759431628746,0.83891724,1068.7,1067.6,0.16279978]
[1759431629847,0.83891724,1068.6,1067.6,0.16279978]
[1759431630051,0.83891724,1068.7,1067.6,0.16279978]
[1759431630547,0.83891724,1068.6,1067.6,0.16279978]
[1759431631351,0.83891724,1068.7,1067.6,0.16279978]
[1759431632250,0.83891724,1068.6,1067.6,0.16279978]
[1759431632849,0.83891724,1068.7,1067.6,0.16279978]
[1759431634652,0.83891724,1068.8,1067.6,0.16279978]
[1759431635851,0.83891724,1068.7,1067.6,0.16279978]
[1759431638558,0.83891724,1068.6,1067.6,0.16279978]
[1759431642158,0.83891724,1068.7,1067.6,0.16279978]
[1759431642556,0.83891724,1068.6,1067.6,0.16279978]
[1759431647864,0.83891724,1068.6,1067.4,1.76263588]
[1759431648964,0.83891724,1068.5,1067.4,1.76263588]
[1759431649264,0.83891724,1068.4,1067.4,1.76263588]
[1759431651561,0.83891724,1068.3,1067.4,1.76263588]
[1759431651759,0.83891724,1068.2,1067.4,1.76263588]
[1759431651964,0.83891724,1068.3,1067.4,1.76263588]
[1759431652664,0.83891724,1068.4,1067.4,1.76263588]
[1759431652864,0.83891724,1068.3,1067.4,1.76263588]
[1759431654062,0.83891724,1068.2,1067.4,1.76263588]
[1759431656766,0.83891724,1068.1,1067.4,1.76263588]
[1759431658164,0.83891724,1068.2,1067.4,1.76263588]
[1759431664076,0.83891724,1068.3,1067.4,1.76263588]
[1759431668884,0.83891724,1068.4,1067.4,1.76263588]
[1759431669780,0.83891724,1068.3,1067.4,1.76263588]
[1759431670080,0.83891724,1068.4,1067.4,1.76263588]
[1759431670285,0.83891724,1068.5,1067.4,1.76263588]
[1759431671482,0.83891724,1068.6,1067.4,1.76263588]
[1759431672890,0.83891724,1068.7,1067.4,1.76263588]
[1759431673088,0.83891724,1069.2,1067.4,1.76263588]
[1759431673388,0.83891724,1069.1,1067.4,1.76263588]
[1759431676386,0.83891724,1069.2,1067.4,1.76263588]
[1759431676990,0.83891724,1069.1,1067.4,1.76263588]
[1759431678192,0.83891724,1069.2,1067.4,1.76263588]
[1759431685193,0.83891724,1069.3,1067.4,1.76263588]
[1759431685695,1.00177721,1069.4,1067.4,1.76263588]
[1759431686392,0.83891724,1069.3,1067.4,1.76263588]
[1759431686791,1.00177721,1069.4,1067.4,1.76263588]
[1759431688897,0.83891724,1069.2,1067.4,1.76263588]
[1759431691201,0.83891724,1069.1,1067.4,1.76263588]
[1759431691601,0.83891724,1068.9,1067.4,1.76263588]
[1759431693806,0.83891724,1068.7,1067.4,1.76263588]
[1759431698203,0.83891724,1068.8,1067.4,1.76263588]
[1759431700507,0.83891724,1068.7,1067.4,1.76263588]
[1759431701308,0.83891724,1068.8,1067.4,1.76263588]
[1759431706815,0.83891724,1068.7,1067.4,1.76263588]
[1759431707011,0.83891724,1068.6,1067.4,1.76263588]
[1759431707213,0.83891724,1068.4,1067.4,1.76263588]
[1759431711217,0.83891724,1068.3,1067.4,1.76263588]
[1759431712719,0.83891724,1068.4,1067.4,1.76263588]
[1759431714918,0.83891724,1068.5,1067.4,1.76263588]
[1759431724133,0.83891724,1068.4,1067.4,1.76263588]
[1759431725333,0.83891724,1068.8,1067.4,1.76263588]
[1759431732236,0.16285997,1069.4,1067.4,1.76263588]
[1759431732237,0.83891724,1068.7,1067.4,1.76263588]
[1759431733032,0.83891724,1068.6,1067.4,1.76263588]
[1759431734336,0.83891724,1068.5,1067.4,1.76263588]
[1759431736141,0.83891724,1068.4,1067.4,1.76263588]
[1759431736843,0.83891724,1068.6,1067.4,1.76263588]
[1759431737041,0.83891724,1068.5,1067.4,1.76263588]
[1759431737943,0.83891724,1068.4,1067.4,1.76263588]
[1759431738444,0.83891724,1068.2,1067.4,1.76263588]
[1759431738940,0.83891724,1068.1,1067.4,1.76263588]
[1759431743545,0.83891724,1068.0,1067.5,1.84471911]
[1759431744048,0.83891724,1068.1,1067.5,1.84471911]
[1759431750555,0.83891724,1068.2,1067.5,1.84471911]
[1759431752157,0.83891724,1068.3,1067.5,1.84471911]
[1759431752357,0.83891724,1068.2,1067.5,1.84471911]
[1759431752657,0.83891724,1068.3,1067.5,1.84471911]
[1759431754257,0.83891724,1068.2,1067.5,1.84471911]
[1759431755956,0.83891724,1068.3,1067.5,1.84471911]
[1759431757059,0.83891724,1068.2,1067.5,1.84471911]
[1759431763066,0.83891724,1068.3,1067.5,1.84471911]
[1759431765971,0.83891724,1068.2,1067.5,1.84471911]
[1759431766386,0.83891724,1068.3,1067.5,1.84471911]
[1759431766670,0.83891724,1068.4,1067.5,1.84471911]
[1759431766972,0.83891724,1068.6,1067.5,1.84471911]
[1759431772070,0.83891724,1068.4,1067.5,1.84471911]
[1759431773170,0.83891724,1068.5,1067.5,1.84471911]
[1759431774774,0.83891724,1068.4,1067.5,1.84471911]
[1759431775074,0.83891724,1068.5,1067.5,1.84471911]
[1759431775372,0.83891724,1068.4,1067.5,1.84471911]
[1759431775571,0.83891724,1068.5,1067.5,1.84471911]
[1759431776274,0.83891724,1068.4,1067.5,1.84471911]
[1759431779176,0.83891724,1068.5,1067.5,1.84471911]
[1759431781178,0.83891724,1068.4,1067.5,1.84471911]
[1759431781380,0.83891724,1068.5,1067.5,1.84471911]
[1759431783480,0.83891724,1068.4,1067.5,1.84471911]
[1759431783780,0.83891724,1068.5,1067.5,1.84471911]
[1759431783977,0.83891724,1068.8,1067.5,1.84471911]
[1759431784178,0.83891724,1068.7,1067.5,1.84471911]
[1759431784478,0.83891724,1068.5,1067.5,1.84471911]
[1759431784778,0.83891724,1068.4,1067.5,1.84471911]
[1759431789588,0.83891724,1068.3,1067.5,1.84471911]
[1759431790087,0.83891724,1068.2,1067.5,1.84471911]
[1759431790688,0.83891724,1068.3,1067.5,1.84471911]
[1759431799889,0.83891724,1068.4,1067.5,1.84471911]
[1759431800091,0.83891724,1068.3,1067.5,1.84471911]
[1759431801486,0.16285997,1069.4,1067.5,1.84471911]
[1759431801487,0.83891724,1068.4,1067.5,1.84471911]
[1759431803594,0.83891724,1068.3,1067.5,1.84471911]
[1759431808199,0.83891724,1068.4,1067.5,1.84471911]
[1759431808396,0.83891724,1068.3,1067.5,1.84471911]
[1759431811300,0.83891724,1068.2,1067.5,1.84471911]
[1759431811500,0.83891724,1068.3,1067.5,1.84471911]
[1759431817501,0.83891724,1068.4,1067.5,1.84471911]
[1759431817902,0.83891724,1068.5,1067.5,1.84471911]
[1759431818898,0.83891724,1068.9,1067.5,1.84471911]
[1759431819303,0.83891724,1069.0,1067.5,1.84471911]
[1759431821907,0.83891724,1068.8,1067.5,1.84471911]
[1759431822203,0.83891724,1068.9,1067.5,1.84471911]
[1759431824712,0.83891724,1068.7,1067.5,1.84471911]
[1759431825412,0.83891724,1068.8,1067.5,1.84471911]
[1759431826512,0.83891724,1068.9,1067.5,1.84471911]
[1759431827516,0.83891724,1068.8,1067.5,1.84471911]
[1759431829016,0.83891724,1068.9,1067.5,1.84471911]
[1759431834219,0.83891724,1069.0,1067.5,1.84471911]
[1759431834820,0.83891724,1068.9,1067.5,1.84471911]
[1759431836520,0.83891724,1069.0,1067.5,1.84471911]
[1759431836717,0.83891724,1068.9,1067.5,1.84471911]
[1759431838021,0.83891724,1069.0,1067.5,1.84471911]
[1759431838322,0.83891724,1069.1,1067.5,1.84471911]
[1759431839323,0.83891724,1069.2,1067.5,1.84471911]
[1759431840431,0.83891724,1069.3,1067.5,1.84471911]
[1759431850228,0.83891724,1069.4,1067.5,1.84471911]
[1759431853034,0.16283559,1069.6,1067.5,1.84471911]
[1759431853332,0.83891724,1069.3,1067.5,1.84471911]
[1759431853532,0.83891724,1069.2,1067.5,1.84471911]
[1759431854629,0.83891724,1069.1,1067.5,1.84471911]
[1759431855028,0.83891724,1069.0,1067.5,1.84471911]
[1759431855232,0.83891724,1068.7,1067.5,1.84471911]
[1759431855433,0.83891724,1068.6,1067.5,1.84471911]
[1759431855629,0.83891724,1068.5,1067.5,1.84471911]
[1759431856333,0.83891724,1068.4,1067.5,1.84471911]
[1759431858638,0.83891724,1068.5,1067.5,1.84471911]
[1759431864338,0.83891724,1068.6,1067.5,1.84471911]
[1759431865939,0.83891724,1068.6,1067.6,1.83855132]
[1759431866240,0.83891724,1068.6,1067.6,1.84255132]
[1759431868345,0.83891724,1068.5,1067.6,1.84255132]
[1759431872045,0.83891724,1068.8,1067.6,1.84255132]
[1759431874448,0.83891724,1068.9,1067.6,1.84255132]
[1759431874748,0.83891724,1068.6,1067.6,1.84255132]
[1759431876650,0.83891724,1068.5,1067.6,1.84255132]
[1759431878356,0.83891724,1068.4,1067.6,1.84255132]
[1759431879954,0.83891724,1068.5,1067.6,1.84255132]
[1759431884768,0.83891724,1068.6,1067.6,1.84255132]
[1759431888565,0.83891724,1068.7,1067.6,1.84255132]
[1759431892572,0.83891724,1068.9,1067.6,1.84255132]
[1759431894067,0.83891724,1069.0,1067.6,1.84255132]
[1759431896973,0.83891724,1068.9,1067.6,1.84255132]
[1759431898468,0.83891724,1068.7,1067.6,1.84255132]
[1759431906976,0.83891724,1069.0,1067.6,1.84255132]
[1759431907174,0.83891724,1068.9,1067.6,1.84255132]
[1759431910277,0.83891724,1068.8,1067.6,1.84255132]
[1759431910681,0.83891724,1068.7,1067.6,1.84255132]
[1759431912681,0.83891724,1068.5,1067.6,1.84255132]
[1759431912879,0.83891724,1068.6,1067.6,1.84255132]
[1759431913077,0.83891724,1068.5,1067.6,1.84255132]
[1759431913378,0.83891724,1068.8,1067.6,1.84255132]
[1759431913579,0.83891724,1069.3,1067.6,1.84255132]
[1759431913778,0.83891724,1069.2,1067.6,1.84255132]
[1759431915280,0.83891724,1069.1,1067.6,1.84255132]
[1759431915479,1.2571997,1069.4,1067.6,1.84255132]
[1759431915480,0.83891724,1069.2,1067.6,1.84255132]
[1759431915982,0.83891724,1069.1,1067.6,1.84255132]
[1759431916680,0.83891724,1069.0,1067.6,1.84255132]
[1759431916879,0.83891724,1068.9,1067.6,1.84255132]
[1759431917298,0.83891724,1069.0,1067.6,1.84255132]
[1759431918882,0.83891724,1069.1,1067.6,1.84255132]
[1759431920885,0.83891724,1069.0,1067.6,1.84255132]
[1759431924086,0.83891724,1069.1,1067.6,1.84255132]
[1759431924285,0.83891724,1069.0,1067.6,1.84255132]
[1759431924585,0.83891724,1069.1,1067.6,1.84255132]
[1759431924884,0.83891724,1069.0,1067.6,1.84255132]
[1759431925188,0.83891724,1069.1,1067.6,1.84255132]
[1759431927286,0.83891724,1069.0,1067.6,1.84255132]
[1759431929488,0.83891724,1069.2,1067.6,1.84255132]
[1759431936496,0.83891724,1068.9,1067.6,1.84255132]
[1759431944400,0.83891724,1069.2,1067.7,0.6247771]
[1759431945100,0.83891724,1069.1,1067.8,0.6247771]
[1759431945901,0.83891724,1069.1,1067.9,0.6247771]
[1759431946401,0.83891724,1069.1,1067.8,0.6247771]
[1759431946600,0.83891724,1069.2,1067.8,0.6247771]
[1759431947000,0.83891724,1069.2,1067.9,0.6247771]
[1759431947200,0.83891724,1069.3,1067.9,0.6247771]
[1759431949405,0.83891724,1069.4,1067.8,0.6247771]
[1759431952104,0.83891724,1069.5,1067.8,0.6247771]
[1759431953203,0.83891724,1069.5,1067.7,0.6247771]
[1759431953702,0.83891724,1069.4,1067.6,2.46732842]
[1759431953906,0.83891724,1069.4,1067.7,0.6247771]
[1759431956406,0.83891724,1069.5,1067.7,0.6247771]
[1759431957409,0.83891724,1069.4,1067.7,0.6247771]
[1759431958813,0.83891724,1069.3,1067.7,0.6247771]
[1759431959010,0.83891724,1069.3,1067.6,2.46732842]
[1759431961024,0.83891724,1069.2,1067.6,2.46732842]
[1759431962022,0.83891724,1069.3,1067.6,2.46732842]
[1759431962521,0.83891724,1069.2,1067.6,2.46732842]
[1759431962921,0.83891724,1069.3,1067.6,2.46732842]
[1759431963426,0.83891724,1069.3,1067.7,0.6247771]
[1759431966527,0.83891724,1069.3,1067.6,2.46732842]
[1759431968325,0.83891724,1069.3,1067.7,0.6247771]
[1759431968924,0.83891724,1069.3,1067.6,2.46732842]
[1759431969428,0.83891724,1069.3,1067.7,0.6247771]
[1759431970028,0.83891724,1069.3,1067.6,2.46732842]
[1759431970224,0.83891724,1069.3,1067.7,0.6247771]
[1759431976933,0.83891724,1069.6,1067.6,2.46732842]
[1759431978228,0.83891724,1069.5,1067.6,2.46732842]
[1759431980733,0.83891724,1069.2,1067.7,0.6247771]
[1759431980930,0.83891724,1069.0,1067.6,1.84255132]
[1759431982135,0.83891724,1068.9,1067.6,1.84255132]
[1759431982334,0.83891724,1068.8,1067.6,1.84255132]
[1759431983632,0.83891724,1068.7,1067.6,1.84255132]
[1759431984730,0.83891724,1068.6,1067.6,1.84255132]
[1759431986036,0.83891724,1068.6,1067.7,1.8740314]
[1759431988437,0.83891724,1068.7,1067.7,1.8740314]
[1759431989739,0.83891724,1068.6,1067.7,1.8740314]
[1759431990337,0.83891724,1068.7,1067.7,1.8740314]
[1759431990939,0.83891724,1068.8,1067.7,1.8740314]
[1759431991135,0.83891724,1068.9,1067.7,1.8740314]
[1759431995538,0.83891724,1068.8,1067.7,1.8740314]
[1759431995939,0.83891724,1068.7,1067.7,1.8740314]
[1759431996442,0.83891724,1068.8,1067.7,1.8740314]
[1759432001545,0.83891724,1068.7,1067.7,1.8740314]
[1759432005643,0.83891724,1068.8,1067.7,1.8740314]
[1759432008948,0.16281121,1069.8,1067.7,1.8740314]
[1759432008949,0.83891724,1068.9,1067.7,1.8740314]
[1759432012150,0.83891724,1068.8,1067.7,1.8740314]
[1759432012348,0.83891724,1068.7,1067.7,1.8740314]
[1759432014151,0.83891724,1068.5,1067.7,1.8740314]
[1759432019552,0.83891724,1068.7,1067.7,1.8740314]
[1759432024757,0.83891724,1068.8,1067.7,1.8740314]
[1759432025455,0.83891724,1068.7,1067.7,1.8740314]
[1759432025660,0.83891724,1068.9,1067.7,1.8740314]
[1759432027156,0.83891724,1068.8,1067.7,1.8740314]
[1759432029860,0.83891724,1068.9,1067.7,1.8740314]
[1759432030061,0.83891724,1069.0,1067.7,1.8740314]
[1759432035672,0.83891724,1069.1,1067.7,1.8740314]
[1759432037167,0.83891724,1069.2,1067.7,1.8740314]
[1759432040968,0.83891724,1069.3,1067.7,1.8740314]
[1759432041167,0.83891724,1069.2,1067.7,1.8740314]
[1759432041368,0.83891724,1069.3,1067.7,1.8740314]
[1759432042366,0.83891724,1069.2,1067.7,1.8740314]
[1759432042872,0.83891724,1069.3,1067.7,1.8740314]
[1759432043073,0.83891724,1069.2,1067.7,1.8740314]
[1759432043572,0.83891724,1069.3,1067.7,1.8740314]
[1759432046469,0.83891724,1069.4,1067.7,1.8740314]
[1759432046769,0.83891724,1069.3,1067.7,1.8740314]
[1759432046973,0.83891724,1069.4,1067.7,1.8740314]
[1759432049274,0.83891724,1069.3,1067.7,1.8740314]
[1759432053575,0.83891724,1069.4,1067.7,1.8740314]
[1759432056278,0.83891724,1069.5,1067.7,1.8740314]
[1759432057282,0.83891724,1069.4,1067.7,1.8740314]
[1759432060288,0.83891724,1069.5,1067.7,1.8740314]
[1759432064288,0.83891724,1069.4,1067.7,1.8740314]
[1759432064586,0.83891724,1069.5,1067.7,1.8740314]
[1759432064787,0.83891724,1069.4,1067.7,1.8740314]
[1759432067092,0.83891724,1069.7,1067.7,1.8740314]
[1759432067487,1.00172845,1069.8,1067.7,1.8740314]
[1759432068490,0.83891724,1069.7,1067.7,2.49917111]
[1759432069689,0.83891724,1069.6,1067.7,2.49917111]
[1759432070296,0.83891724,1069.5,1067.7,2.49917111]
[1759432072391,0.83891724,1069.6,1067.7,2.49917111]
[1759432073096,0.83891724,1070.3,1067.7,2.49917111]
[1759432073397,0.16277808,1070.2,1067.7,2.49917111]
[1759432073593,1.00169532,1070.2,1067.8,0.62513971]
[1759432074396,0.83891724,1070.1,1067.9,0.62513971]
[1759432074592,0.83891724,1070.1,1067.8,0.62513971]
[1759432074793,0.83891724,1070.1,1067.8,0.62239085]
[1759432074995,0.83891724,1070.1,1067.9,0.62239085]
[1759432075296,0.83891724,1070.1,1068.0,1.90371745]
[1759432076596,0.83891724,1070.1,1068.0,2.5261083]
[1759432078694,0.83891724,1070.0,1068.0,2.5261083]
[1759432078892,0.83891724,1070.1,1068.0,2.5261083]
[1759432079094,0.83891724,1070.1,1068.0,1.90371745]
[1759432079297,0.83891724,1070.0,1068.0,1.90371745]
[1759432079494,0.83891724,1069.9,1068.0,1.90371745]
[1759432080398,0.83891724,1069.6,1068.0,1.90371745]
[1759432081296,0.83891724,1069.5,1068.0,1.90371745]
[1759432083395,0.83891724,1069.5,1068.0,2.5261083]
[1759432083798,0.83891724,1069.6,1068.0,1.90371745]
[1759432084298,0.83891724,1069.6,1068.0,2.5261083]
[1759432084703,0.83891724,1069.6,1068.0,1.90371745]
[1759432085197,0.83891724,1069.6,1068.0,2.5261083]
[1759432086904,0.83891724,1069.6,1068.1,0.62239085]
[1759432087799,0.83891724,1069.7,1068.1,0.62239085]
[1759432088204,0.83891724,1069.8,1068.1,0.62239085]
[1759432088404,0.83891724,1069.9,1068.2,0.62239085]
[1759432090609,0.83891724,1070.1,1068.2,0.62239085]
[1759432091109,0.83891724,1070.0,1068.2,0.62239085]
[1759432092211,0.83891724,1070.1,1068.2,0.62239085]
[1759432092712,0.83891724,1070.0,1068.2,0.62239085]
[1759432093808,0.83891724,1070.1,1068.2,0.62239085]
[1759432095112,0.83891724,1070.0,1068.2,0.62239085]
[1759432098718,0.83891724,1069.9,1068.3,0.62239085]
[1759432098918,0.83891724,1070.1,1068.2,0.62239085]
[1759432100114,0.83891724,1070.1,1068.0,1.90371745]
[1759432100312,0.83891724,1070.1,1068.3,1.86475301]
[1759432104114,0.83891724,1070.0,1068.3,1.86475301]
[1759432104515,0.83891724,1069.9,1068.3,1.86475301]
[1759432105415,0.83891724,1069.9,1068.3,2.48751825]
[1759432105620,0.16274268,1070.2,1068.3,1.86475301]
[1759432109217,0.83891724,1070.5,1068.3,1.86475301]
[1759432109416,0.83891724,1070.4,1068.3,1.86475301]
[1759432110120,1.00162264,1070.4,1068.3,1.86475301]
[1759432111123,0.83891724,1070.3,1068.3,1.86475301]
[1759432112223,0.83891724,1070.1,1068.3,2.48751825]
[1759432114624,1.2571997,1070.3,1068.4,0.62276524]
[1759432114625,0.83891724,1070.0,1068.4,0.62276524]
[1759432114824,0.83891724,1070.1,1068.3,2.48751825]
[1759432117022,0.83891724,1070.1,1068.4,0.62276524]
[1759432118622,1.00162264,1070.4,1068.3,2.48751825]
[1759432118824,0.83891724,1070.2,1068.3,1.86475301]
[1759432119824,0.83891724,1070.0,1068.3,1.86475301]
[1759432120023,0.83891724,1069.9,1068.3,1.86475301]
[1759432120226,0.83891724,1069.8,1068.3,1.86475301]
[1759432120722,0.83891724,1069.9,1068.3,1.86475301]
[1759432120927,0.83891724,1069.8,1068.3,1.86475301]